{"text_format":"3","workbook":"xlsx","n_sheets":2,"sheets":["Monitorizare scădere în greut.","calcule"],"not_rendered":{"charts":1,"defined_names":10},"read":"whole","date_system":"1900"}

{"sheet":"Monitorizare scădere în greut.","index":0,"n_rows":19,"n_cols":9,"rows_kept":19,"merged":[[0,3,0,7],[0,8,0,9],[1,3,2,9]]}
[null,"OBIECTIV PRIVIND GREUTATEA","VIZUALIZAREA DIAGRAMĂ","Nume",{"$nulls":4},"SCĂDERE ÎN GREUTATE"]
[{"$nulls":3},"INSTRUMENT DE MONITORIZARE"]
[null,{"v":172,"d":"172.0"},"SĂPTĂMÂNAL"]
[null,"AFIȘARE OBIECTIV PRIVIND GREUTATEA","Da"]
[null,"Diagrama de monitorizare a greutății care monitorizează  greutatea curentă se află în această celulă. Selectați „Da” în celula C4 pentru a afișa linia cu obiectivul privind greutatea pe diagrama arie."]
[]
[null,"DATA","GREUTATE"]
[null,{"$f":"TODAY()-77","v":"2022-01-19"},{"v":176,"d":"176.0"}]
[null,{"$f":"TODAY()-70","v":"2022-01-26"},{"v":176,"d":"176.0"}]
[null,{"$f":"TODAY()-63","v":"2022-02-02"},177.6]
[null,{"$f":"TODAY()-56","v":"2022-02-09"},176.5]
[null,{"$f":"TODAY()-49","v":"2022-02-16"},176.1]
[null,{"$f":"TODAY()-42","v":"2022-02-23"},{"v":174,"d":"174.0"}]
[null,{"$f":"TODAY()-35","v":"2022-03-02"},173.5]
[null,{"$f":"TODAY()-28","v":"2022-03-09"},{"v":173,"d":"173.0"}]
[null,{"$f":"TODAY()-21","v":"2022-03-16"},{"v":172,"d":"172.0"}]
[null,{"$f":"TODAY()-14","v":"2022-03-23"},{"v":172,"d":"172.0"}]
[null,{"$f":"TODAY()-7","v":"2022-03-30"},{"v":173,"d":"173.0"}]
[null,{"$f":"TODAY()","v":"2022-04-06"},{"v":172,"d":"172.0"}]

{"sheet":"calcule","index":1,"n_rows":107,"n_cols":17,"rows_kept":107,"hidden":true}
["*** Foaie care trebuie să rămână ascunsă ***"]
[]
[{"$f":"COUNTIF(A5:A107,FALSE)","v":12},"Perioade","Valori",{"$nulls":3},{"$f":"COUNTIF(H5:H28,\">\"&0)","v":4},"Perioade",null,"Valori"]
[null,"Săptămâna",null,null,{"$f":"IFERROR(IF(AratăObiectivGreutate=\"Da\", TRUE, FALSE),FALSE)","v":true},null,null,"Luna","EOM"]
[{"$f":"FALSE","v":false},{"$f":"IFERROR(IF(LEN('Monitorizare scădere în greut.'!$B8)=0,TODAY(),'Monitorizare scădere în greut.'!$B8),TODAY())","v":"2022-01-19"},{"$f":"IFERROR(IF(LEN('Monitorizare scădere în greut.'!$C8)=0,ObiectivGreutate,'Monitorizare scădere în greut.'!$C8),0)","v":176},{"$f":"IFERROR(IF(MIN(PerioadeDiagramă)=0,TODAY(),MIN(PerioadeDiagramă)),TODAY())","v":"2022-01-19"},{"$f":"IFERROR(IF($A$5,0,IF($E$4,ObiectivGreutate,NA())),0)","v":172},null,null,{"$f":"IFERROR(IF($A$5,TODAY(),DATE(YEAR($B5),MONTH($B5),1)),\"\")","v":"2022-01-01"},{"$f":"IFERROR(IF($A$5,TODAY(),EOMONTH($H5,0)),\"\")","v":"2022-01-31"},{"$f":"IFERROR(IF($A$5,0,AVERAGEIFS(Greutate[GREUTATE],Greutate[DATA],\">=\"&$H5,Greutate[DATA],\"<=\"&$I5)),NA())","v":176}]
[{"$f":"IF((LEN('Monitorizare scădere în greut.'!$C9)=0),TRUE)","v":false},{"$f":"IFERROR(IF(A6,0,IF(LEN('Monitorizare scădere în greut.'!$B9)=0,0,'Monitorizare scădere în greut.'!$B9)),\"\")","v":"2022-01-26"},{"$f":"IFERROR(IF(A6,0,IF(LEN('Monitorizare scădere în greut.'!$C9)=0,0,'Monitorizare scădere în greut.'!$C9)),\"\")","v":176},{"$f":"IFERROR(IF(MAX(PerioadeDiagramă)=0,TODAY(),MAX(PerioadeDiagramă)),TODAY())","v":"2022-04-06"},{"$f":"IFERROR(IF($A$5,0,IF($E$4,ObiectivGreutate,NA())),0)","v":172},null,null,{"$f":"IF($I5+1>MAX($B:$B),NA(),$I5+1)","v":"2022-02-01"},{"$f":"EOMONTH($H6,0)","v":"2022-02-28"},{"$f":"IFERROR(AVERAGEIFS(Greutate[GREUTATE],Greutate[DATA],\">=\"&$H6,Greutate[DATA],\"<=\"&$I6),NA())","v":176.05}]
[{"$f":"IF((LEN('Monitorizare scădere în greut.'!$C10)=0),TRUE)","v":false},{"$f":"IFERROR(IF(A7,0,IF(LEN('Monitorizare scădere în greut.'!$B10)=0,0,'Monitorizare scădere în greut.'!$B10)),\"\")","v":"2022-02-02"},{"$f":"IFERROR(IF(A7,0,IF(LEN('Monitorizare scădere în greut.'!$C10)=0,0,'Monitorizare scădere în greut.'!$C10)),\"\")","v":177.6},{"$nulls":4},"2022-03-01","2022-03-31",{"$f":"IFERROR(AVERAGEIFS(Greutate[GREUTATE],Greutate[DATA],\">=\"&$H7,Greutate[DATA],\"<=\"&$I7),NA())","v":172.7}]
[{"$f":"IF((LEN('Monitorizare scădere în greut.'!$C11)=0),TRUE)","v":false},{"$f":"IFERROR(IF(A8,0,IF(LEN('Monitorizare scădere în greut.'!$B11)=0,0,'Monitorizare scădere în greut.'!$B11)),\"\")","v":"2022-02-09"},{"$f":"IFERROR(IF(A8,0,IF(LEN('Monitorizare scădere în greut.'!$C11)=0,0,'Monitorizare scădere în greut.'!$C11)),\"\")","v":176.5},{"$nulls":4},"2022-04-01","2022-04-30",{"$f":"IFERROR(AVERAGEIFS(Greutate[GREUTATE],Greutate[DATA],\">=\"&$H8,Greutate[DATA],\"<=\"&$I8),NA())","v":172}]
[{"$f":"IF((LEN('Monitorizare scădere în greut.'!$C12)=0),TRUE)","v":false},{"$f":"IFERROR(IF(A9,0,IF(LEN('Monitorizare scădere în greut.'!$B12)=0,0,'Monitorizare scădere în greut.'!$B12)),\"\")","v":"2022-02-16"},{"$f":"IFERROR(IF(A9,0,IF(LEN('Monitorizare scădere în greut.'!$C12)=0,0,'Monitorizare scădere în greut.'!$C12)),\"\")","v":176.1},{"$nulls":4},{"$error":"#N/A"},{"$error":"#N/A"},{"$f":"IFERROR(AVERAGEIFS(Greutate[GREUTATE],Greutate[DATA],\">=\"&$H9,Greutate[DATA],\"<=\"&$I9),NA())","v":{"$error":"#N/A"}}]
[{"$f":"IF((LEN('Monitorizare scădere în greut.'!$C13)=0),TRUE)","v":false},{"$f":"IFERROR(IF(A10,0,IF(LEN('Monitorizare scădere în greut.'!$B13)=0,0,'Monitorizare scădere în greut.'!$B13)),\"\")","v":"2022-02-23"},{"$f":"IFERROR(IF(A10,0,IF(LEN('Monitorizare scădere în greut.'!$C13)=0,0,'Monitorizare scădere în greut.'!$C13)),\"\")","v":174},{"$nulls":4},{"$error":"#N/A"},{"$error":"#N/A"},{"$f":"IFERROR(AVERAGEIFS(Greutate[GREUTATE],Greutate[DATA],\">=\"&$H10,Greutate[DATA],\"<=\"&$I10),NA())","v":{"$error":"#N/A"}}]
[{"$f":"IF((LEN('Monitorizare scădere în greut.'!$C14)=0),TRUE)","v":false},{"$f":"IFERROR(IF(A11,0,IF(LEN('Monitorizare scădere în greut.'!$B14)=0,0,'Monitorizare scădere în greut.'!$B14)),\"\")","v":"2022-03-02"},{"$f":"IFERROR(IF(A11,0,IF(LEN('Monitorizare scădere în greut.'!$C14)=0,0,'Monitorizare scădere în greut.'!$C14)),\"\")","v":173.5},{"$nulls":4},{"$error":"#N/A"},{"$error":"#N/A"},{"$f":"IFERROR(AVERAGEIFS(Greutate[GREUTATE],Greutate[DATA],\">=\"&$H11,Greutate[DATA],\"<=\"&$I11),NA())","v":{"$error":"#N/A"}},{"$nulls":6},{"$f":"MAX($B:$B)","v":"2022-04-06"}]
[{"$f":"IF((LEN('Monitorizare scădere în greut.'!$C15)=0),TRUE)","v":false},{"$f":"IFERROR(IF(A12,0,IF(LEN('Monitorizare scădere în greut.'!$B15)=0,0,'Monitorizare scădere în greut.'!$B15)),\"\")","v":"2022-03-09"},{"$f":"IFERROR(IF(A12,0,IF(LEN('Monitorizare scădere în greut.'!$C15)=0,0,'Monitorizare scădere în greut.'!$C15)),\"\")","v":173},{"$nulls":4},{"$error":"#N/A"},{"$error":"#N/A"},{"$f":"IFERROR(AVERAGEIFS(Greutate[GREUTATE],Greutate[DATA],\">=\"&$H12,Greutate[DATA],\"<=\"&$I12),NA())","v":{"$error":"#N/A"}}]
[{"$f":"IF((LEN('Monitorizare scădere în greut.'!$C16)=0),TRUE)","v":false},{"$f":"IFERROR(IF(A13,0,IF(LEN('Monitorizare scădere în greut.'!$B16)=0,0,'Monitorizare scădere în greut.'!$B16)),\"\")","v":"2022-03-16"},{"$f":"IFERROR(IF(A13,0,IF(LEN('Monitorizare scădere în greut.'!$C16)=0,0,'Monitorizare scădere în greut.'!$C16)),\"\")","v":172},{"$nulls":4},{"$error":"#N/A"},{"$error":"#N/A"},{"$f":"IFERROR(AVERAGEIFS(Greutate[GREUTATE],Greutate[DATA],\">=\"&$H13,Greutate[DATA],\"<=\"&$I13),NA())","v":{"$error":"#N/A"}}]
[{"$f":"IF((LEN('Monitorizare scădere în greut.'!$C17)=0),TRUE)","v":false},{"$f":"IFERROR(IF(A14,0,IF(LEN('Monitorizare scădere în greut.'!$B17)=0,0,'Monitorizare scădere în greut.'!$B17)),\"\")","v":"2022-03-23"},{"$f":"IFERROR(IF(A14,0,IF(LEN('Monitorizare scădere în greut.'!$C17)=0,0,'Monitorizare scădere în greut.'!$C17)),\"\")","v":172},{"$nulls":4},{"$error":"#N/A"},{"$error":"#N/A"},{"$f":"IFERROR(AVERAGEIFS(Greutate[GREUTATE],Greutate[DATA],\">=\"&$H14,Greutate[DATA],\"<=\"&$I14),NA())","v":{"$error":"#N/A"}}]
[{"$f":"IF((LEN('Monitorizare scădere în greut.'!$C18)=0),TRUE)","v":false},{"$f":"IFERROR(IF(A15,0,IF(LEN('Monitorizare scădere în greut.'!$B18)=0,0,'Monitorizare scădere în greut.'!$B18)),\"\")","v":"2022-03-30"},{"$f":"IFERROR(IF(A15,0,IF(LEN('Monitorizare scădere în greut.'!$C18)=0,0,'Monitorizare scădere în greut.'!$C18)),\"\")","v":173},{"$nulls":4},{"$error":"#N/A"},{"$error":"#N/A"},{"$f":"IFERROR(AVERAGEIFS(Greutate[GREUTATE],Greutate[DATA],\">=\"&$H15,Greutate[DATA],\"<=\"&$I15),NA())","v":{"$error":"#N/A"}}]
[{"$f":"IF((LEN('Monitorizare scădere în greut.'!$C19)=0),TRUE)","v":false},{"$f":"IFERROR(IF(A16,0,IF(LEN('Monitorizare scădere în greut.'!$B19)=0,0,'Monitorizare scădere în greut.'!$B19)),\"\")","v":"2022-04-06"},{"$f":"IFERROR(IF(A16,0,IF(LEN('Monitorizare scădere în greut.'!$C19)=0,0,'Monitorizare scădere în greut.'!$C19)),\"\")","v":172},{"$nulls":4},{"$error":"#N/A"},{"$error":"#N/A"},{"$f":"IFERROR(AVERAGEIFS(Greutate[GREUTATE],Greutate[DATA],\">=\"&$H16,Greutate[DATA],\"<=\"&$I16),NA())","v":{"$error":"#N/A"}}]
[{"$f":"IF((LEN('Monitorizare scădere în greut.'!$C20)=0),TRUE)","v":true},{"$f":"IFERROR(IF(A17,0,IF(LEN('Monitorizare scădere în greut.'!$B20)=0,0,'Monitorizare scădere în greut.'!$B20)),\"\")","v":"00:00:00"},{"$f":"IFERROR(IF(A17,0,IF(LEN('Monitorizare scădere în greut.'!$C20)=0,0,'Monitorizare scădere în greut.'!$C20)),\"\")","v":0},{"$nulls":4},{"$error":"#N/A"},{"$error":"#N/A"},{"$f":"IFERROR(AVERAGEIFS(Greutate[GREUTATE],Greutate[DATA],\">=\"&$H17,Greutate[DATA],\"<=\"&$I17),NA())","v":{"$error":"#N/A"}}]
[{"$f":"IF((LEN('Monitorizare scădere în greut.'!$C21)=0),TRUE)","v":true},{"$f":"IFERROR(IF(A18,0,IF(LEN('Monitorizare scădere în greut.'!$B21)=0,0,'Monitorizare scădere în greut.'!$B21)),\"\")","v":"00:00:00"},{"$f":"IFERROR(IF(A18,0,IF(LEN('Monitorizare scădere în greut.'!$C21)=0,0,'Monitorizare scădere în greut.'!$C21)),\"\")","v":0},{"$nulls":4},{"$error":"#N/A"},{"$error":"#N/A"},{"$f":"IFERROR(AVERAGEIFS(Greutate[GREUTATE],Greutate[DATA],\">=\"&$H18,Greutate[DATA],\"<=\"&$I18),NA())","v":{"$error":"#N/A"}}]
[{"$f":"IF((LEN('Monitorizare scădere în greut.'!$C22)=0),TRUE)","v":true},{"$f":"IFERROR(IF(A19,0,IF(LEN('Monitorizare scădere în greut.'!$B22)=0,0,'Monitorizare scădere în greut.'!$B22)),\"\")","v":"00:00:00"},{"$f":"IFERROR(IF(A19,0,IF(LEN('Monitorizare scădere în greut.'!$C22)=0,0,'Monitorizare scădere în greut.'!$C22)),\"\")","v":0},{"$nulls":4},{"$error":"#N/A"},{"$error":"#N/A"},{"$f":"IFERROR(AVERAGEIFS(Greutate[GREUTATE],Greutate[DATA],\">=\"&$H19,Greutate[DATA],\"<=\"&$I19),NA())","v":{"$error":"#N/A"}}]
[{"$f":"IF((LEN('Monitorizare scădere în greut.'!$C23)=0),TRUE)","v":true},{"$f":"IFERROR(IF(A20,0,IF(LEN('Monitorizare scădere în greut.'!$B23)=0,0,'Monitorizare scădere în greut.'!$B23)),\"\")","v":"00:00:00"},{"$f":"IFERROR(IF(A20,0,IF(LEN('Monitorizare scădere în greut.'!$C23)=0,0,'Monitorizare scădere în greut.'!$C23)),\"\")","v":0},{"$nulls":4},{"$error":"#N/A"},{"$error":"#N/A"},{"$f":"IFERROR(AVERAGEIFS(Greutate[GREUTATE],Greutate[DATA],\">=\"&$H20,Greutate[DATA],\"<=\"&$I20),NA())","v":{"$error":"#N/A"}}]
[{"$f":"IF((LEN('Monitorizare scădere în greut.'!$C24)=0),TRUE)","v":true},{"$f":"IFERROR(IF(A21,0,IF(LEN('Monitorizare scădere în greut.'!$B24)=0,0,'Monitorizare scădere în greut.'!$B24)),\"\")","v":"00:00:00"},{"$f":"IFERROR(IF(A21,0,IF(LEN('Monitorizare scădere în greut.'!$C24)=0,0,'Monitorizare scădere în greut.'!$C24)),\"\")","v":0},{"$nulls":4},{"$error":"#N/A"},{"$error":"#N/A"},{"$f":"IFERROR(AVERAGEIFS(Greutate[GREUTATE],Greutate[DATA],\">=\"&$H21,Greutate[DATA],\"<=\"&$I21),NA())","v":{"$error":"#N/A"}}]
[{"$f":"IF((LEN('Monitorizare scădere în greut.'!$C25)=0),TRUE)","v":true},{"$f":"IFERROR(IF(A22,0,IF(LEN('Monitorizare scădere în greut.'!$B25)=0,0,'Monitorizare scădere în greut.'!$B25)),\"\")","v":"00:00:00"},{"$f":"IFERROR(IF(A22,0,IF(LEN('Monitorizare scădere în greut.'!$C25)=0,0,'Monitorizare scădere în greut.'!$C25)),\"\")","v":0},{"$nulls":4},{"$error":"#N/A"},{"$error":"#N/A"},{"$f":"IFERROR(AVERAGEIFS(Greutate[GREUTATE],Greutate[DATA],\">=\"&$H22,Greutate[DATA],\"<=\"&$I22),NA())","v":{"$error":"#N/A"}}]
[{"$f":"IF((LEN('Monitorizare scădere în greut.'!$C26)=0),TRUE)","v":true},{"$f":"IFERROR(IF(A23,0,IF(LEN('Monitorizare scădere în greut.'!$B26)=0,0,'Monitorizare scădere în greut.'!$B26)),\"\")","v":"00:00:00"},{"$f":"IFERROR(IF(A23,0,IF(LEN('Monitorizare scădere în greut.'!$C26)=0,0,'Monitorizare scădere în greut.'!$C26)),\"\")","v":0},{"$nulls":4},{"$error":"#N/A"},{"$error":"#N/A"},{"$f":"IFERROR(AVERAGEIFS(Greutate[GREUTATE],Greutate[DATA],\">=\"&$H23,Greutate[DATA],\"<=\"&$I23),NA())","v":{"$error":"#N/A"}}]
[{"$f":"IF((LEN('Monitorizare scădere în greut.'!$C27)=0),TRUE)","v":true},{"$f":"IFERROR(IF(A24,0,IF(LEN('Monitorizare scădere în greut.'!$B27)=0,0,'Monitorizare scădere în greut.'!$B27)),\"\")","v":"00:00:00"},{"$f":"IFERROR(IF(A24,0,IF(LEN('Monitorizare scădere în greut.'!$C27)=0,0,'Monitorizare scădere în greut.'!$C27)),\"\")","v":0},{"$nulls":4},{"$error":"#N/A"},{"$error":"#N/A"},{"$f":"IFERROR(AVERAGEIFS(Greutate[GREUTATE],Greutate[DATA],\">=\"&$H24,Greutate[DATA],\"<=\"&$I24),NA())","v":{"$error":"#N/A"}}]
[{"$f":"IF((LEN('Monitorizare scădere în greut.'!$C28)=0),TRUE)","v":true},{"$f":"IFERROR(IF(A25,0,IF(LEN('Monitorizare scădere în greut.'!$B28)=0,0,'Monitorizare scădere în greut.'!$B28)),\"\")","v":"00:00:00"},{"$f":"IFERROR(IF(A25,0,IF(LEN('Monitorizare scădere în greut.'!$C28)=0,0,'Monitorizare scădere în greut.'!$C28)),\"\")","v":0},{"$nulls":4},{"$error":"#N/A"},{"$error":"#N/A"},{"$f":"IFERROR(AVERAGEIFS(Greutate[GREUTATE],Greutate[DATA],\">=\"&$H25,Greutate[DATA],\"<=\"&$I25),NA())","v":{"$error":"#N/A"}}]
[{"$f":"IF((LEN('Monitorizare scădere în greut.'!$C29)=0),TRUE)","v":true},{"$f":"IFERROR(IF(A26,0,IF(LEN('Monitorizare scădere în greut.'!$B29)=0,0,'Monitorizare scădere în greut.'!$B29)),\"\")","v":"00:00:00"},{"$f":"IFERROR(IF(A26,0,IF(LEN('Monitorizare scădere în greut.'!$C29)=0,0,'Monitorizare scădere în greut.'!$C29)),\"\")","v":0},{"$nulls":4},{"$error":"#N/A"},{"$error":"#N/A"},{"$f":"IFERROR(AVERAGEIFS(Greutate[GREUTATE],Greutate[DATA],\">=\"&$H26,Greutate[DATA],\"<=\"&$I26),NA())","v":{"$error":"#N/A"}}]
[{"$f":"IF((LEN('Monitorizare scădere în greut.'!$C30)=0),TRUE)","v":true},{"$f":"IFERROR(IF(A27,0,IF(LEN('Monitorizare scădere în greut.'!$B30)=0,0,'Monitorizare scădere în greut.'!$B30)),\"\")","v":"00:00:00"},{"$f":"IFERROR(IF(A27,0,IF(LEN('Monitorizare scădere în greut.'!$C30)=0,0,'Monitorizare scădere în greut.'!$C30)),\"\")","v":0},{"$nulls":4},{"$error":"#N/A"},{"$error":"#N/A"},{"$f":"IFERROR(AVERAGEIFS(Greutate[GREUTATE],Greutate[DATA],\">=\"&$H27,Greutate[DATA],\"<=\"&$I27),NA())","v":{"$error":"#N/A"}}]
[{"$f":"IF((LEN('Monitorizare scădere în greut.'!$C31)=0),TRUE)","v":true},{"$f":"IFERROR(IF(A28,0,IF(LEN('Monitorizare scădere în greut.'!$B31)=0,0,'Monitorizare scădere în greut.'!$B31)),\"\")","v":"00:00:00"},{"$f":"IFERROR(IF(A28,0,IF(LEN('Monitorizare scădere în greut.'!$C31)=0,0,'Monitorizare scădere în greut.'!$C31)),\"\")","v":0},{"$nulls":4},{"$error":"#N/A"},{"$error":"#N/A"},{"$f":"IFERROR(AVERAGEIFS(Greutate[GREUTATE],Greutate[DATA],\">=\"&$H28,Greutate[DATA],\"<=\"&$I28),NA())","v":{"$error":"#N/A"}}]
[{"$f":"IF((LEN('Monitorizare scădere în greut.'!$C32)=0),TRUE)","v":true},{"$f":"IFERROR(IF(A29,0,IF(LEN('Monitorizare scădere în greut.'!$B32)=0,0,'Monitorizare scădere în greut.'!$B32)),\"\")","v":"00:00:00"},{"$f":"IFERROR(IF(A29,0,IF(LEN('Monitorizare scădere în greut.'!$C32)=0,0,'Monitorizare scădere în greut.'!$C32)),\"\")","v":0}]
[{"$f":"IF((LEN('Monitorizare scădere în greut.'!$C33)=0),TRUE)","v":true},{"$f":"IFERROR(IF(A30,0,IF(LEN('Monitorizare scădere în greut.'!$B33)=0,0,'Monitorizare scădere în greut.'!$B33)),\"\")","v":"00:00:00"},{"$f":"IFERROR(IF(A30,0,IF(LEN('Monitorizare scădere în greut.'!$C33)=0,0,'Monitorizare scădere în greut.'!$C33)),\"\")","v":0}]
[{"$f":"IF((LEN('Monitorizare scădere în greut.'!$C34)=0),TRUE)","v":true},{"$f":"IFERROR(IF(A31,0,IF(LEN('Monitorizare scădere în greut.'!$B34)=0,0,'Monitorizare scădere în greut.'!$B34)),\"\")","v":"00:00:00"},{"$f":"IFERROR(IF(A31,0,IF(LEN('Monitorizare scădere în greut.'!$C34)=0,0,'Monitorizare scădere în greut.'!$C34)),\"\")","v":0}]
[{"$f":"IF((LEN('Monitorizare scădere în greut.'!$C35)=0),TRUE)","v":true},{"$f":"IFERROR(IF(A32,0,IF(LEN('Monitorizare scădere în greut.'!$B35)=0,0,'Monitorizare scădere în greut.'!$B35)),\"\")","v":"00:00:00"},{"$f":"IFERROR(IF(A32,0,IF(LEN('Monitorizare scădere în greut.'!$C35)=0,0,'Monitorizare scădere în greut.'!$C35)),\"\")","v":0}]
[{"$f":"IF((LEN('Monitorizare scădere în greut.'!$C36)=0),TRUE)","v":true},{"$f":"IFERROR(IF(A33,0,IF(LEN('Monitorizare scădere în greut.'!$B36)=0,0,'Monitorizare scădere în greut.'!$B36)),\"\")","v":"00:00:00"},{"$f":"IFERROR(IF(A33,0,IF(LEN('Monitorizare scădere în greut.'!$C36)=0,0,'Monitorizare scădere în greut.'!$C36)),\"\")","v":0}]
[{"$f":"IF((LEN('Monitorizare scădere în greut.'!$C37)=0),TRUE)","v":true},{"$f":"IFERROR(IF(A34,0,IF(LEN('Monitorizare scădere în greut.'!$B37)=0,0,'Monitorizare scădere în greut.'!$B37)),\"\")","v":"00:00:00"},{"$f":"IFERROR(IF(A34,0,IF(LEN('Monitorizare scădere în greut.'!$C37)=0,0,'Monitorizare scădere în greut.'!$C37)),\"\")","v":0}]
[{"$f":"IF((LEN('Monitorizare scădere în greut.'!$C38)=0),TRUE)","v":true},{"$f":"IFERROR(IF(A35,0,IF(LEN('Monitorizare scădere în greut.'!$B38)=0,0,'Monitorizare scădere în greut.'!$B38)),\"\")","v":"00:00:00"},{"$f":"IFERROR(IF(A35,0,IF(LEN('Monitorizare scădere în greut.'!$C38)=0,0,'Monitorizare scădere în greut.'!$C38)),\"\")","v":0}]
[{"$f":"IF((LEN('Monitorizare scădere în greut.'!$C39)=0),TRUE)","v":true},{"$f":"IFERROR(IF(A36,0,IF(LEN('Monitorizare scădere în greut.'!$B39)=0,0,'Monitorizare scădere în greut.'!$B39)),\"\")","v":"00:00:00"},{"$f":"IFERROR(IF(A36,0,IF(LEN('Monitorizare scădere în greut.'!$C39)=0,0,'Monitorizare scădere în greut.'!$C39)),\"\")","v":0}]
[{"$f":"IF((LEN('Monitorizare scădere în greut.'!$C40)=0),TRUE)","v":true},{"$f":"IFERROR(IF(A37,0,IF(LEN('Monitorizare scădere în greut.'!$B40)=0,0,'Monitorizare scădere în greut.'!$B40)),\"\")","v":"00:00:00"},{"$f":"IFERROR(IF(A37,0,IF(LEN('Monitorizare scădere în greut.'!$C40)=0,0,'Monitorizare scădere în greut.'!$C40)),\"\")","v":0}]
[{"$f":"IF((LEN('Monitorizare scădere în greut.'!$C41)=0),TRUE)","v":true},{"$f":"IFERROR(IF(A38,0,IF(LEN('Monitorizare scădere în greut.'!$B41)=0,0,'Monitorizare scădere în greut.'!$B41)),\"\")","v":"00:00:00"},{"$f":"IFERROR(IF(A38,0,IF(LEN('Monitorizare scădere în greut.'!$C41)=0,0,'Monitorizare scădere în greut.'!$C41)),\"\")","v":0}]
[{"$f":"IF((LEN('Monitorizare scădere în greut.'!$C42)=0),TRUE)","v":true},{"$f":"IFERROR(IF(A39,0,IF(LEN('Monitorizare scădere în greut.'!$B42)=0,0,'Monitorizare scădere în greut.'!$B42)),\"\")","v":"00:00:00"},{"$f":"IFERROR(IF(A39,0,IF(LEN('Monitorizare scădere în greut.'!$C42)=0,0,'Monitorizare scădere în greut.'!$C42)),\"\")","v":0}]
[{"$f":"IF((LEN('Monitorizare scădere în greut.'!$C43)=0),TRUE)","v":true},{"$f":"IFERROR(IF(A40,0,IF(LEN('Monitorizare scădere în greut.'!$B43)=0,0,'Monitorizare scădere în greut.'!$B43)),\"\")","v":"00:00:00"},{"$f":"IFERROR(IF(A40,0,IF(LEN('Monitorizare scădere în greut.'!$C43)=0,0,'Monitorizare scădere în greut.'!$C43)),\"\")","v":0}]
[{"$f":"IF((LEN('Monitorizare scădere în greut.'!$C44)=0),TRUE)","v":true},{"$f":"IFERROR(IF(A41,0,IF(LEN('Monitorizare scădere în greut.'!$B44)=0,0,'Monitorizare scădere în greut.'!$B44)),\"\")","v":"00:00:00"},{"$f":"IFERROR(IF(A41,0,IF(LEN('Monitorizare scădere în greut.'!$C44)=0,0,'Monitorizare scădere în greut.'!$C44)),\"\")","v":0}]
[{"$f":"IF((LEN('Monitorizare scădere în greut.'!$C45)=0),TRUE)","v":true},{"$f":"IFERROR(IF(A42,0,IF(LEN('Monitorizare scădere în greut.'!$B45)=0,0,'Monitorizare scădere în greut.'!$B45)),\"\")","v":"00:00:00"},{"$f":"IFERROR(IF(A42,0,IF(LEN('Monitorizare scădere în greut.'!$C45)=0,0,'Monitorizare scădere în greut.'!$C45)),\"\")","v":0}]
[{"$f":"IF((LEN('Monitorizare scădere în greut.'!$C46)=0),TRUE)","v":true},{"$f":"IFERROR(IF(A43,0,IF(LEN('Monitorizare scădere în greut.'!$B46)=0,0,'Monitorizare scădere în greut.'!$B46)),\"\")","v":"00:00:00"},{"$f":"IFERROR(IF(A43,0,IF(LEN('Monitorizare scădere în greut.'!$C46)=0,0,'Monitorizare scădere în greut.'!$C46)),\"\")","v":0}]
[{"$f":"IF((LEN('Monitorizare scădere în greut.'!$C47)=0),TRUE)","v":true},{"$f":"IFERROR(IF(A44,0,IF(LEN('Monitorizare scădere în greut.'!$B47)=0,0,'Monitorizare scădere în greut.'!$B47)),\"\")","v":"00:00:00"},{"$f":"IFERROR(IF(A44,0,IF(LEN('Monitorizare scădere în greut.'!$C47)=0,0,'Monitorizare scădere în greut.'!$C47)),\"\")","v":0}]
[{"$f":"IF((LEN('Monitorizare scădere în greut.'!$C48)=0),TRUE)","v":true},{"$f":"IFERROR(IF(A45,0,IF(LEN('Monitorizare scădere în greut.'!$B48)=0,0,'Monitorizare scădere în greut.'!$B48)),\"\")","v":"00:00:00"},{"$f":"IFERROR(IF(A45,0,IF(LEN('Monitorizare scădere în greut.'!$C48)=0,0,'Monitorizare scădere în greut.'!$C48)),\"\")","v":0}]
[{"$f":"IF((LEN('Monitorizare scădere în greut.'!$C49)=0),TRUE)","v":true},{"$f":"IFERROR(IF(A46,0,IF(LEN('Monitorizare scădere în greut.'!$B49)=0,0,'Monitorizare scădere în greut.'!$B49)),\"\")","v":"00:00:00"},{"$f":"IFERROR(IF(A46,0,IF(LEN('Monitorizare scădere în greut.'!$C49)=0,0,'Monitorizare scădere în greut.'!$C49)),\"\")","v":0}]
[{"$f":"IF((LEN('Monitorizare scădere în greut.'!$C50)=0),TRUE)","v":true},{"$f":"IFERROR(IF(A47,0,IF(LEN('Monitorizare scădere în greut.'!$B50)=0,0,'Monitorizare scădere în greut.'!$B50)),\"\")","v":"00:00:00"},{"$f":"IFERROR(IF(A47,0,IF(LEN('Monitorizare scădere în greut.'!$C50)=0,0,'Monitorizare scădere în greut.'!$C50)),\"\")","v":0}]
[{"$f":"IF((LEN('Monitorizare scădere în greut.'!$C51)=0),TRUE)","v":true},{"$f":"IFERROR(IF(A48,0,IF(LEN('Monitorizare scădere în greut.'!$B51)=0,0,'Monitorizare scădere în greut.'!$B51)),\"\")","v":"00:00:00"},{"$f":"IFERROR(IF(A48,0,IF(LEN('Monitorizare scădere în greut.'!$C51)=0,0,'Monitorizare scădere în greut.'!$C51)),\"\")","v":0}]
[{"$f":"IF((LEN('Monitorizare scădere în greut.'!$C52)=0),TRUE)","v":true},{"$f":"IFERROR(IF(A49,0,IF(LEN('Monitorizare scădere în greut.'!$B52)=0,0,'Monitorizare scădere în greut.'!$B52)),\"\")","v":"00:00:00"},{"$f":"IFERROR(IF(A49,0,IF(LEN('Monitorizare scădere în greut.'!$C52)=0,0,'Monitorizare scădere în greut.'!$C52)),\"\")","v":0}]
[{"$f":"IF((LEN('Monitorizare scădere în greut.'!$C53)=0),TRUE)","v":true},{"$f":"IFERROR(IF(A50,0,IF(LEN('Monitorizare scădere în greut.'!$B53)=0,0,'Monitorizare scădere în greut.'!$B53)),\"\")","v":"00:00:00"},{"$f":"IFERROR(IF(A50,0,IF(LEN('Monitorizare scădere în greut.'!$C53)=0,0,'Monitorizare scădere în greut.'!$C53)),\"\")","v":0}]
[{"$f":"IF((LEN('Monitorizare scădere în greut.'!$C54)=0),TRUE)","v":true},{"$f":"IFERROR(IF(A51,0,IF(LEN('Monitorizare scădere în greut.'!$B54)=0,0,'Monitorizare scădere în greut.'!$B54)),\"\")","v":"00:00:00"},{"$f":"IFERROR(IF(A51,0,IF(LEN('Monitorizare scădere în greut.'!$C54)=0,0,'Monitorizare scădere în greut.'!$C54)),\"\")","v":0}]
[{"$f":"IF((LEN('Monitorizare scădere în greut.'!$C55)=0),TRUE)","v":true},{"$f":"IFERROR(IF(A52,0,IF(LEN('Monitorizare scădere în greut.'!$B55)=0,0,'Monitorizare scădere în greut.'!$B55)),\"\")","v":"00:00:00"},{"$f":"IFERROR(IF(A52,0,IF(LEN('Monitorizare scădere în greut.'!$C55)=0,0,'Monitorizare scădere în greut.'!$C55)),\"\")","v":0}]
[{"$f":"IF((LEN('Monitorizare scădere în greut.'!$C56)=0),TRUE)","v":true},{"$f":"IFERROR(IF(A53,0,IF(LEN('Monitorizare scădere în greut.'!$B56)=0,0,'Monitorizare scădere în greut.'!$B56)),\"\")","v":"00:00:00"},{"$f":"IFERROR(IF(A53,0,IF(LEN('Monitorizare scădere în greut.'!$C56)=0,0,'Monitorizare scădere în greut.'!$C56)),\"\")","v":0}]
[{"$f":"IF((LEN('Monitorizare scădere în greut.'!$C57)=0),TRUE)","v":true},{"$f":"IFERROR(IF(A54,0,IF(LEN('Monitorizare scădere în greut.'!$B57)=0,0,'Monitorizare scădere în greut.'!$B57)),\"\")","v":"00:00:00"},{"$f":"IFERROR(IF(A54,0,IF(LEN('Monitorizare scădere în greut.'!$C57)=0,0,'Monitorizare scădere în greut.'!$C57)),\"\")","v":0}]
[{"$f":"IF((LEN('Monitorizare scădere în greut.'!$C58)=0),TRUE)","v":true},{"$f":"IFERROR(IF(A55,0,IF(LEN('Monitorizare scădere în greut.'!$B58)=0,0,'Monitorizare scădere în greut.'!$B58)),\"\")","v":"00:00:00"},{"$f":"IFERROR(IF(A55,0,IF(LEN('Monitorizare scădere în greut.'!$C58)=0,0,'Monitorizare scădere în greut.'!$C58)),\"\")","v":0}]
[{"$f":"IF((LEN('Monitorizare scădere în greut.'!$C59)=0),TRUE)","v":true},{"$f":"IFERROR(IF(A56,0,IF(LEN('Monitorizare scădere în greut.'!$B59)=0,0,'Monitorizare scădere în greut.'!$B59)),\"\")","v":"00:00:00"},{"$f":"IFERROR(IF(A56,0,IF(LEN('Monitorizare scădere în greut.'!$C59)=0,0,'Monitorizare scădere în greut.'!$C59)),\"\")","v":0}]
[{"$f":"IF((LEN('Monitorizare scădere în greut.'!$C60)=0),TRUE)","v":true},{"$f":"IFERROR(IF(A57,0,IF(LEN('Monitorizare scădere în greut.'!$B60)=0,0,'Monitorizare scădere în greut.'!$B60)),\"\")","v":"00:00:00"},{"$f":"IFERROR(IF(A57,0,IF(LEN('Monitorizare scădere în greut.'!$C60)=0,0,'Monitorizare scădere în greut.'!$C60)),\"\")","v":0}]
[{"$f":"IF((LEN('Monitorizare scădere în greut.'!$C61)=0),TRUE)","v":true},{"$f":"IFERROR(IF(A58,0,IF(LEN('Monitorizare scădere în greut.'!$B61)=0,0,'Monitorizare scădere în greut.'!$B61)),\"\")","v":"00:00:00"},{"$f":"IFERROR(IF(A58,0,IF(LEN('Monitorizare scădere în greut.'!$C61)=0,0,'Monitorizare scădere în greut.'!$C61)),\"\")","v":0}]
[{"$f":"IF((LEN('Monitorizare scădere în greut.'!$C62)=0),TRUE)","v":true},{"$f":"IFERROR(IF(A59,0,IF(LEN('Monitorizare scădere în greut.'!$B62)=0,0,'Monitorizare scădere în greut.'!$B62)),\"\")","v":"00:00:00"},{"$f":"IFERROR(IF(A59,0,IF(LEN('Monitorizare scădere în greut.'!$C62)=0,0,'Monitorizare scădere în greut.'!$C62)),\"\")","v":0}]
[{"$f":"IF((LEN('Monitorizare scădere în greut.'!$C63)=0),TRUE)","v":true},{"$f":"IFERROR(IF(A60,0,IF(LEN('Monitorizare scădere în greut.'!$B63)=0,0,'Monitorizare scădere în greut.'!$B63)),\"\")","v":"00:00:00"},{"$f":"IFERROR(IF(A60,0,IF(LEN('Monitorizare scădere în greut.'!$C63)=0,0,'Monitorizare scădere în greut.'!$C63)),\"\")","v":0}]
[{"$f":"IF((LEN('Monitorizare scădere în greut.'!$C64)=0),TRUE)","v":true},{"$f":"IFERROR(IF(A61,0,IF(LEN('Monitorizare scădere în greut.'!$B64)=0,0,'Monitorizare scădere în greut.'!$B64)),\"\")","v":"00:00:00"},{"$f":"IFERROR(IF(A61,0,IF(LEN('Monitorizare scădere în greut.'!$C64)=0,0,'Monitorizare scădere în greut.'!$C64)),\"\")","v":0}]
[{"$f":"IF((LEN('Monitorizare scădere în greut.'!$C65)=0),TRUE)","v":true},{"$f":"IFERROR(IF(A62,0,IF(LEN('Monitorizare scădere în greut.'!$B65)=0,0,'Monitorizare scădere în greut.'!$B65)),\"\")","v":"00:00:00"},{"$f":"IFERROR(IF(A62,0,IF(LEN('Monitorizare scădere în greut.'!$C65)=0,0,'Monitorizare scădere în greut.'!$C65)),\"\")","v":0}]
[{"$f":"IF((LEN('Monitorizare scădere în greut.'!$C66)=0),TRUE)","v":true},{"$f":"IFERROR(IF(A63,0,IF(LEN('Monitorizare scădere în greut.'!$B66)=0,0,'Monitorizare scădere în greut.'!$B66)),\"\")","v":"00:00:00"},{"$f":"IFERROR(IF(A63,0,IF(LEN('Monitorizare scădere în greut.'!$C66)=0,0,'Monitorizare scădere în greut.'!$C66)),\"\")","v":0}]
[{"$f":"IF((LEN('Monitorizare scădere în greut.'!$C67)=0),TRUE)","v":true},{"$f":"IFERROR(IF(A64,0,IF(LEN('Monitorizare scădere în greut.'!$B67)=0,0,'Monitorizare scădere în greut.'!$B67)),\"\")","v":"00:00:00"},{"$f":"IFERROR(IF(A64,0,IF(LEN('Monitorizare scădere în greut.'!$C67)=0,0,'Monitorizare scădere în greut.'!$C67)),\"\")","v":0}]
[{"$f":"IF((LEN('Monitorizare scădere în greut.'!$C68)=0),TRUE)","v":true},{"$f":"IFERROR(IF(A65,0,IF(LEN('Monitorizare scădere în greut.'!$B68)=0,0,'Monitorizare scădere în greut.'!$B68)),\"\")","v":"00:00:00"},{"$f":"IFERROR(IF(A65,0,IF(LEN('Monitorizare scădere în greut.'!$C68)=0,0,'Monitorizare scădere în greut.'!$C68)),\"\")","v":0}]
[{"$f":"IF((LEN('Monitorizare scădere în greut.'!$C69)=0),TRUE)","v":true},{"$f":"IFERROR(IF(A66,0,IF(LEN('Monitorizare scădere în greut.'!$B69)=0,0,'Monitorizare scădere în greut.'!$B69)),\"\")","v":"00:00:00"},{"$f":"IFERROR(IF(A66,0,IF(LEN('Monitorizare scădere în greut.'!$C69)=0,0,'Monitorizare scădere în greut.'!$C69)),\"\")","v":0}]
[{"$f":"IF((LEN('Monitorizare scădere în greut.'!$C70)=0),TRUE)","v":true},{"$f":"IFERROR(IF(A67,0,IF(LEN('Monitorizare scădere în greut.'!$B70)=0,0,'Monitorizare scădere în greut.'!$B70)),\"\")","v":"00:00:00"},{"$f":"IFERROR(IF(A67,0,IF(LEN('Monitorizare scădere în greut.'!$C70)=0,0,'Monitorizare scădere în greut.'!$C70)),\"\")","v":0}]
[{"$f":"IF((LEN('Monitorizare scădere în greut.'!$C71)=0),TRUE)","v":true},{"$f":"IFERROR(IF(A68,0,IF(LEN('Monitorizare scădere în greut.'!$B71)=0,0,'Monitorizare scădere în greut.'!$B71)),\"\")","v":"00:00:00"},{"$f":"IFERROR(IF(A68,0,IF(LEN('Monitorizare scădere în greut.'!$C71)=0,0,'Monitorizare scădere în greut.'!$C71)),\"\")","v":0}]
[{"$f":"IF((LEN('Monitorizare scădere în greut.'!$C72)=0),TRUE)","v":true},{"$f":"IFERROR(IF(A69,0,IF(LEN('Monitorizare scădere în greut.'!$B72)=0,0,'Monitorizare scădere în greut.'!$B72)),\"\")","v":"00:00:00"},{"$f":"IFERROR(IF(A69,0,IF(LEN('Monitorizare scădere în greut.'!$C72)=0,0,'Monitorizare scădere în greut.'!$C72)),\"\")","v":0}]
[{"$f":"IF((LEN('Monitorizare scădere în greut.'!$C73)=0),TRUE)","v":true},{"$f":"IFERROR(IF(A70,0,IF(LEN('Monitorizare scădere în greut.'!$B73)=0,0,'Monitorizare scădere în greut.'!$B73)),\"\")","v":"00:00:00"},{"$f":"IFERROR(IF(A70,0,IF(LEN('Monitorizare scădere în greut.'!$C73)=0,0,'Monitorizare scădere în greut.'!$C73)),\"\")","v":0}]
[{"$f":"IF((LEN('Monitorizare scădere în greut.'!$C74)=0),TRUE)","v":true},{"$f":"IFERROR(IF(A71,0,IF(LEN('Monitorizare scădere în greut.'!$B74)=0,0,'Monitorizare scădere în greut.'!$B74)),\"\")","v":"00:00:00"},{"$f":"IFERROR(IF(A71,0,IF(LEN('Monitorizare scădere în greut.'!$C74)=0,0,'Monitorizare scădere în greut.'!$C74)),\"\")","v":0}]
[{"$f":"IF((LEN('Monitorizare scădere în greut.'!$C75)=0),TRUE)","v":true},{"$f":"IFERROR(IF(A72,0,IF(LEN('Monitorizare scădere în greut.'!$B75)=0,0,'Monitorizare scădere în greut.'!$B75)),\"\")","v":"00:00:00"},{"$f":"IFERROR(IF(A72,0,IF(LEN('Monitorizare scădere în greut.'!$C75)=0,0,'Monitorizare scădere în greut.'!$C75)),\"\")","v":0}]
[{"$f":"IF((LEN('Monitorizare scădere în greut.'!$C76)=0),TRUE)","v":true},{"$f":"IFERROR(IF(A73,0,IF(LEN('Monitorizare scădere în greut.'!$B76)=0,0,'Monitorizare scădere în greut.'!$B76)),\"\")","v":"00:00:00"},{"$f":"IFERROR(IF(A73,0,IF(LEN('Monitorizare scădere în greut.'!$C76)=0,0,'Monitorizare scădere în greut.'!$C76)),\"\")","v":0}]
[{"$f":"IF((LEN('Monitorizare scădere în greut.'!$C77)=0),TRUE)","v":true},{"$f":"IFERROR(IF(A74,0,IF(LEN('Monitorizare scădere în greut.'!$B77)=0,0,'Monitorizare scădere în greut.'!$B77)),\"\")","v":"00:00:00"},{"$f":"IFERROR(IF(A74,0,IF(LEN('Monitorizare scădere în greut.'!$C77)=0,0,'Monitorizare scădere în greut.'!$C77)),\"\")","v":0}]
[{"$f":"IF((LEN('Monitorizare scădere în greut.'!$C78)=0),TRUE)","v":true},{"$f":"IFERROR(IF(A75,0,IF(LEN('Monitorizare scădere în greut.'!$B78)=0,0,'Monitorizare scădere în greut.'!$B78)),\"\")","v":"00:00:00"},{"$f":"IFERROR(IF(A75,0,IF(LEN('Monitorizare scădere în greut.'!$C78)=0,0,'Monitorizare scădere în greut.'!$C78)),\"\")","v":0}]
[{"$f":"IF((LEN('Monitorizare scădere în greut.'!$C79)=0),TRUE)","v":true},{"$f":"IFERROR(IF(A76,0,IF(LEN('Monitorizare scădere în greut.'!$B79)=0,0,'Monitorizare scădere în greut.'!$B79)),\"\")","v":"00:00:00"},{"$f":"IFERROR(IF(A76,0,IF(LEN('Monitorizare scădere în greut.'!$C79)=0,0,'Monitorizare scădere în greut.'!$C79)),\"\")","v":0}]
[{"$f":"IF((LEN('Monitorizare scădere în greut.'!$C80)=0),TRUE)","v":true},{"$f":"IFERROR(IF(A77,0,IF(LEN('Monitorizare scădere în greut.'!$B80)=0,0,'Monitorizare scădere în greut.'!$B80)),\"\")","v":"00:00:00"},{"$f":"IFERROR(IF(A77,0,IF(LEN('Monitorizare scădere în greut.'!$C80)=0,0,'Monitorizare scădere în greut.'!$C80)),\"\")","v":0}]
[{"$f":"IF((LEN('Monitorizare scădere în greut.'!$C81)=0),TRUE)","v":true},{"$f":"IFERROR(IF(A78,0,IF(LEN('Monitorizare scădere în greut.'!$B81)=0,0,'Monitorizare scădere în greut.'!$B81)),\"\")","v":"00:00:00"},{"$f":"IFERROR(IF(A78,0,IF(LEN('Monitorizare scădere în greut.'!$C81)=0,0,'Monitorizare scădere în greut.'!$C81)),\"\")","v":0}]
[{"$f":"IF((LEN('Monitorizare scădere în greut.'!$C82)=0),TRUE)","v":true},{"$f":"IFERROR(IF(A79,0,IF(LEN('Monitorizare scădere în greut.'!$B82)=0,0,'Monitorizare scădere în greut.'!$B82)),\"\")","v":"00:00:00"},{"$f":"IFERROR(IF(A79,0,IF(LEN('Monitorizare scădere în greut.'!$C82)=0,0,'Monitorizare scădere în greut.'!$C82)),\"\")","v":0}]
[{"$f":"IF((LEN('Monitorizare scădere în greut.'!$C83)=0),TRUE)","v":true},{"$f":"IFERROR(IF(A80,0,IF(LEN('Monitorizare scădere în greut.'!$B83)=0,0,'Monitorizare scădere în greut.'!$B83)),\"\")","v":"00:00:00"},{"$f":"IFERROR(IF(A80,0,IF(LEN('Monitorizare scădere în greut.'!$C83)=0,0,'Monitorizare scădere în greut.'!$C83)),\"\")","v":0}]
[{"$f":"IF((LEN('Monitorizare scădere în greut.'!$C84)=0),TRUE)","v":true},{"$f":"IFERROR(IF(A81,0,IF(LEN('Monitorizare scădere în greut.'!$B84)=0,0,'Monitorizare scădere în greut.'!$B84)),\"\")","v":"00:00:00"},{"$f":"IFERROR(IF(A81,0,IF(LEN('Monitorizare scădere în greut.'!$C84)=0,0,'Monitorizare scădere în greut.'!$C84)),\"\")","v":0}]
[{"$f":"IF((LEN('Monitorizare scădere în greut.'!$C85)=0),TRUE)","v":true},{"$f":"IFERROR(IF(A82,0,IF(LEN('Monitorizare scădere în greut.'!$B85)=0,0,'Monitorizare scădere în greut.'!$B85)),\"\")","v":"00:00:00"},{"$f":"IFERROR(IF(A82,0,IF(LEN('Monitorizare scădere în greut.'!$C85)=0,0,'Monitorizare scădere în greut.'!$C85)),\"\")","v":0}]
[{"$f":"IF((LEN('Monitorizare scădere în greut.'!$C86)=0),TRUE)","v":true},{"$f":"IFERROR(IF(A83,0,IF(LEN('Monitorizare scădere în greut.'!$B86)=0,0,'Monitorizare scădere în greut.'!$B86)),\"\")","v":"00:00:00"},{"$f":"IFERROR(IF(A83,0,IF(LEN('Monitorizare scădere în greut.'!$C86)=0,0,'Monitorizare scădere în greut.'!$C86)),\"\")","v":0}]
[{"$f":"IF((LEN('Monitorizare scădere în greut.'!$C87)=0),TRUE)","v":true},{"$f":"IFERROR(IF(A84,0,IF(LEN('Monitorizare scădere în greut.'!$B87)=0,0,'Monitorizare scădere în greut.'!$B87)),\"\")","v":"00:00:00"},{"$f":"IFERROR(IF(A84,0,IF(LEN('Monitorizare scădere în greut.'!$C87)=0,0,'Monitorizare scădere în greut.'!$C87)),\"\")","v":0}]
[{"$f":"IF((LEN('Monitorizare scădere în greut.'!$C88)=0),TRUE)","v":true},{"$f":"IFERROR(IF(A85,0,IF(LEN('Monitorizare scădere în greut.'!$B88)=0,0,'Monitorizare scădere în greut.'!$B88)),\"\")","v":"00:00:00"},{"$f":"IFERROR(IF(A85,0,IF(LEN('Monitorizare scădere în greut.'!$C88)=0,0,'Monitorizare scădere în greut.'!$C88)),\"\")","v":0}]
[{"$f":"IF((LEN('Monitorizare scădere în greut.'!$C89)=0),TRUE)","v":true},{"$f":"IFERROR(IF(A86,0,IF(LEN('Monitorizare scădere în greut.'!$B89)=0,0,'Monitorizare scădere în greut.'!$B89)),\"\")","v":"00:00:00"},{"$f":"IFERROR(IF(A86,0,IF(LEN('Monitorizare scădere în greut.'!$C89)=0,0,'Monitorizare scădere în greut.'!$C89)),\"\")","v":0}]
[{"$f":"IF((LEN('Monitorizare scădere în greut.'!$C90)=0),TRUE)","v":true},{"$f":"IFERROR(IF(A87,0,IF(LEN('Monitorizare scădere în greut.'!$B90)=0,0,'Monitorizare scădere în greut.'!$B90)),\"\")","v":"00:00:00"},{"$f":"IFERROR(IF(A87,0,IF(LEN('Monitorizare scădere în greut.'!$C90)=0,0,'Monitorizare scădere în greut.'!$C90)),\"\")","v":0}]
[{"$f":"IF((LEN('Monitorizare scădere în greut.'!$C91)=0),TRUE)","v":true},{"$f":"IFERROR(IF(A88,0,IF(LEN('Monitorizare scădere în greut.'!$B91)=0,0,'Monitorizare scădere în greut.'!$B91)),\"\")","v":"00:00:00"},{"$f":"IFERROR(IF(A88,0,IF(LEN('Monitorizare scădere în greut.'!$C91)=0,0,'Monitorizare scădere în greut.'!$C91)),\"\")","v":0}]
[{"$f":"IF((LEN('Monitorizare scădere în greut.'!$C92)=0),TRUE)","v":true},{"$f":"IFERROR(IF(A89,0,IF(LEN('Monitorizare scădere în greut.'!$B92)=0,0,'Monitorizare scădere în greut.'!$B92)),\"\")","v":"00:00:00"},{"$f":"IFERROR(IF(A89,0,IF(LEN('Monitorizare scădere în greut.'!$C92)=0,0,'Monitorizare scădere în greut.'!$C92)),\"\")","v":0}]
[{"$f":"IF((LEN('Monitorizare scădere în greut.'!$C93)=0),TRUE)","v":true},{"$f":"IFERROR(IF(A90,0,IF(LEN('Monitorizare scădere în greut.'!$B93)=0,0,'Monitorizare scădere în greut.'!$B93)),\"\")","v":"00:00:00"},{"$f":"IFERROR(IF(A90,0,IF(LEN('Monitorizare scădere în greut.'!$C93)=0,0,'Monitorizare scădere în greut.'!$C93)),\"\")","v":0}]
[{"$f":"IF((LEN('Monitorizare scădere în greut.'!$C94)=0),TRUE)","v":true},{"$f":"IFERROR(IF(A91,0,IF(LEN('Monitorizare scădere în greut.'!$B94)=0,0,'Monitorizare scădere în greut.'!$B94)),\"\")","v":"00:00:00"},{"$f":"IFERROR(IF(A91,0,IF(LEN('Monitorizare scădere în greut.'!$C94)=0,0,'Monitorizare scădere în greut.'!$C94)),\"\")","v":0}]
[{"$f":"IF((LEN('Monitorizare scădere în greut.'!$C95)=0),TRUE)","v":true},{"$f":"IFERROR(IF(A92,0,IF(LEN('Monitorizare scădere în greut.'!$B95)=0,0,'Monitorizare scădere în greut.'!$B95)),\"\")","v":"00:00:00"},{"$f":"IFERROR(IF(A92,0,IF(LEN('Monitorizare scădere în greut.'!$C95)=0,0,'Monitorizare scădere în greut.'!$C95)),\"\")","v":0}]
[{"$f":"IF((LEN('Monitorizare scădere în greut.'!$C96)=0),TRUE)","v":true},{"$f":"IFERROR(IF(A93,0,IF(LEN('Monitorizare scădere în greut.'!$B96)=0,0,'Monitorizare scădere în greut.'!$B96)),\"\")","v":"00:00:00"},{"$f":"IFERROR(IF(A93,0,IF(LEN('Monitorizare scădere în greut.'!$C96)=0,0,'Monitorizare scădere în greut.'!$C96)),\"\")","v":0}]
[{"$f":"IF((LEN('Monitorizare scădere în greut.'!$C97)=0),TRUE)","v":true},{"$f":"IFERROR(IF(A94,0,IF(LEN('Monitorizare scădere în greut.'!$B97)=0,0,'Monitorizare scădere în greut.'!$B97)),\"\")","v":"00:00:00"},{"$f":"IFERROR(IF(A94,0,IF(LEN('Monitorizare scădere în greut.'!$C97)=0,0,'Monitorizare scădere în greut.'!$C97)),\"\")","v":0}]
[{"$f":"IF((LEN('Monitorizare scădere în greut.'!$C98)=0),TRUE)","v":true},{"$f":"IFERROR(IF(A95,0,IF(LEN('Monitorizare scădere în greut.'!$B98)=0,0,'Monitorizare scădere în greut.'!$B98)),\"\")","v":"00:00:00"},{"$f":"IFERROR(IF(A95,0,IF(LEN('Monitorizare scădere în greut.'!$C98)=0,0,'Monitorizare scădere în greut.'!$C98)),\"\")","v":0}]
[{"$f":"IF((LEN('Monitorizare scădere în greut.'!$C99)=0),TRUE)","v":true},{"$f":"IFERROR(IF(A96,0,IF(LEN('Monitorizare scădere în greut.'!$B99)=0,0,'Monitorizare scădere în greut.'!$B99)),\"\")","v":"00:00:00"},{"$f":"IFERROR(IF(A96,0,IF(LEN('Monitorizare scădere în greut.'!$C99)=0,0,'Monitorizare scădere în greut.'!$C99)),\"\")","v":0}]
[{"$f":"IF((LEN('Monitorizare scădere în greut.'!$C100)=0),TRUE)","v":true},{"$f":"IFERROR(IF(A97,0,IF(LEN('Monitorizare scădere în greut.'!$B100)=0,0,'Monitorizare scădere în greut.'!$B100)),\"\")","v":"00:00:00"},{"$f":"IFERROR(IF(A97,0,IF(LEN('Monitorizare scădere în greut.'!$C100)=0,0,'Monitorizare scădere în greut.'!$C100)),\"\")","v":0}]
[{"$f":"IF((LEN('Monitorizare scădere în greut.'!$C101)=0),TRUE)","v":true},{"$f":"IFERROR(IF(A98,0,IF(LEN('Monitorizare scădere în greut.'!$B101)=0,0,'Monitorizare scădere în greut.'!$B101)),\"\")","v":"00:00:00"},{"$f":"IFERROR(IF(A98,0,IF(LEN('Monitorizare scădere în greut.'!$C101)=0,0,'Monitorizare scădere în greut.'!$C101)),\"\")","v":0}]
[{"$f":"IF((LEN('Monitorizare scădere în greut.'!$C102)=0),TRUE)","v":true},{"$f":"IFERROR(IF(A99,0,IF(LEN('Monitorizare scădere în greut.'!$B102)=0,0,'Monitorizare scădere în greut.'!$B102)),\"\")","v":"00:00:00"},{"$f":"IFERROR(IF(A99,0,IF(LEN('Monitorizare scădere în greut.'!$C102)=0,0,'Monitorizare scădere în greut.'!$C102)),\"\")","v":0}]
[{"$f":"IF((LEN('Monitorizare scădere în greut.'!$C103)=0),TRUE)","v":true},{"$f":"IFERROR(IF(A100,0,IF(LEN('Monitorizare scădere în greut.'!$B103)=0,0,'Monitorizare scădere în greut.'!$B103)),\"\")","v":"00:00:00"},{"$f":"IFERROR(IF(A100,0,IF(LEN('Monitorizare scădere în greut.'!$C103)=0,0,'Monitorizare scădere în greut.'!$C103)),\"\")","v":0}]
[{"$f":"IF((LEN('Monitorizare scădere în greut.'!$C104)=0),TRUE)","v":true},{"$f":"IFERROR(IF(A101,0,IF(LEN('Monitorizare scădere în greut.'!$B104)=0,0,'Monitorizare scădere în greut.'!$B104)),\"\")","v":"00:00:00"},{"$f":"IFERROR(IF(A101,0,IF(LEN('Monitorizare scădere în greut.'!$C104)=0,0,'Monitorizare scădere în greut.'!$C104)),\"\")","v":0}]
[{"$f":"IF((LEN('Monitorizare scădere în greut.'!$C105)=0),TRUE)","v":true},{"$f":"IFERROR(IF(A102,0,IF(LEN('Monitorizare scădere în greut.'!$B105)=0,0,'Monitorizare scădere în greut.'!$B105)),\"\")","v":"00:00:00"},{"$f":"IFERROR(IF(A102,0,IF(LEN('Monitorizare scădere în greut.'!$C105)=0,0,'Monitorizare scădere în greut.'!$C105)),\"\")","v":0}]
[{"$f":"IF((LEN('Monitorizare scădere în greut.'!$C106)=0),TRUE)","v":true},{"$f":"IFERROR(IF(A103,0,IF(LEN('Monitorizare scădere în greut.'!$B106)=0,0,'Monitorizare scădere în greut.'!$B106)),\"\")","v":"00:00:00"},{"$f":"IFERROR(IF(A103,0,IF(LEN('Monitorizare scădere în greut.'!$C106)=0,0,'Monitorizare scădere în greut.'!$C106)),\"\")","v":0}]
[{"$f":"IF((LEN('Monitorizare scădere în greut.'!$C107)=0),TRUE)","v":true},{"$f":"IFERROR(IF(A104,0,IF(LEN('Monitorizare scădere în greut.'!$B107)=0,0,'Monitorizare scădere în greut.'!$B107)),\"\")","v":"00:00:00"},{"$f":"IFERROR(IF(A104,0,IF(LEN('Monitorizare scădere în greut.'!$C107)=0,0,'Monitorizare scădere în greut.'!$C107)),\"\")","v":0}]
[{"$f":"IF((LEN('Monitorizare scădere în greut.'!$C108)=0),TRUE)","v":true},{"$f":"IFERROR(IF(A105,0,IF(LEN('Monitorizare scădere în greut.'!$B108)=0,0,'Monitorizare scădere în greut.'!$B108)),\"\")","v":"00:00:00"},{"$f":"IFERROR(IF(A105,0,IF(LEN('Monitorizare scădere în greut.'!$C108)=0,0,'Monitorizare scădere în greut.'!$C108)),\"\")","v":0}]
[{"$f":"IF((LEN('Monitorizare scădere în greut.'!$C109)=0),TRUE)","v":true},{"$f":"IFERROR(IF(A106,0,IF(LEN('Monitorizare scădere în greut.'!$B109)=0,0,'Monitorizare scădere în greut.'!$B109)),\"\")","v":"00:00:00"},{"$f":"IFERROR(IF(A106,0,IF(LEN('Monitorizare scădere în greut.'!$C109)=0,0,'Monitorizare scădere în greut.'!$C109)),\"\")","v":0}]
[{"$f":"IF((LEN('Monitorizare scădere în greut.'!$C110)=0),TRUE)","v":true},{"$f":"IFERROR(IF(A107,0,IF(LEN('Monitorizare scădere în greut.'!$B110)=0,0,'Monitorizare scădere în greut.'!$B110)),\"\")","v":"00:00:00"},{"$f":"IFERROR(IF(A107,0,IF(LEN('Monitorizare scădere în greut.'!$C110)=0,0,'Monitorizare scădere în greut.'!$C110)),\"\")","v":0}]